bitfinex/quotes_SOLUSD_20240614
["timestamp","ask_amount","ask_price","bid_price","bid_amount"]
[1718386902278,2.5975,142.44,142.41,15.5883]
[1718386902460,7.7926,142.44,142.41,7.794]
[1718386902656,16.6137,142.47,142.39,5.1969]
[1718386902862,16.6137,142.47,142.4,7.7947]
[1718386902863,2.5978,142.43,142.4,7.7947]
[1718386903078,2.5979,142.42,142.39,25.9835]
[1718386903379,16.6137,142.47,142.39,5.1969]
[1718386903586,2.5981,142.41,142.38,23.387]
[1718386903884,2.5977,142.44,142.36,22.1205]
[1718386904055,2.5975,142.44,142.41,18.1862]
[1718386904385,7.7924,142.45,142.42,7.7937]
[1718386904599,7.7928,142.44,142.41,2.598]
[1718386904886,2.5976,142.44,142.41,25.9803]
[1718386905261,2.5976,142.44,142.41,7.7942]
[1718386905684,7.7933,142.43,142.4,7.7946]
[1718386905863,7.7933,142.43,142.4,2.5982]
[1718386905864,15.5866,142.43,142.4,2.5982]
[1718386906275,7.7945,142.41,142.38,7.7957]
[1718386906469,25.984,142.4,142.37,2.5988]
[1718386906770,2.5985,142.39,142.36,25.9894]
[1718386906989,23.3856,142.4,142.36,25.9894]
[1718386906990,25.984,142.4,142.37,2.5988]
[1718386907357,23.3874,142.39,142.32,16.6427]
[1718386907682,2.5986,142.38,142.35,25.9916]
[1718386907866,7.7959,142.39,142.36,2.599]
[1718386908062,7.7952,142.4,142.37,2.5988]
[1718386908262,2.5983,142.4,142.37,2.5987]
[1718386908477,15.5899,142.4,142.37,2.5987]
[1718386908687,6.4485,142.43,142.35,23.3922]
[1718386909001,18.1921,142.37,142.32,16.6427]
[1718386909204,2.5991,142.36,142.33,7.7985]
[1718386909368,0.17,142.4,142.31,23.3986]
[1718386909695,0.17,142.4,142.33,2.5994]
[1718386909696,12.9944,142.37,142.33,2.5994]
[1718386909867,2.5993,142.35,142.32,2.5997]
[1718386910064,15.5954,142.35,142.32,2.5997]
[1718386910297,7.7978,142.35,142.32,2.5997]
[1718386910467,7.7978,142.35,142.32,7.7991]
[1718386910468,2.5993,142.35,142.32,7.7991]
[1718386910669,25.9909,142.36,142.33,2.5995]
[1718386910989,2.5991,142.36,142.33,7.7986]
[1718386911173,2.5991,142.36,142.33,15.5973]
[1718386911484,2.5991,142.36,142.33,7.7986]
[1718386911674,7.7972,142.36,142.33,2.5995]
[1718386911875,15.5955,142.35,142.31,25.9985]
[1718386912278,15.5955,142.35,142.32,2.5997]
[1718386912473,15.5954,142.35,142.31,23.3988]
[1718386912675,15.5944,142.36,142.32,15.5982]
[1718386912867,7.7977,142.35,142.31,25.9984]
[1718386913190,15.5966,142.34,142.3,25.9999]
[1718386913387,2.5994,142.34,142.31,7.7996]
[1718386913589,23.3951,142.34,142.3,2.6]
[1718386913793,2.5996,142.33,142.3,7.8001]
[1718386913968,18.1992,142.32,142.28,2.6004]
[1718386914172,2.5997,142.32,142.29,2.6001]
[1718386914397,15.2427,142.35,142.24,22.0829]
[1718386914597,15.2427,142.35,142.27,26.0063]
[1718386914598,7.8,142.31,142.27,26.0063]
[1718386914775,23.4018,142.3,142.26,2.6008]
[1718386914974,23.4018,142.3,142.27,2.6006]
[1718386914975,7.8005,142.3,142.27,2.6006]
[1718386915177,23.4013,142.3,142.26,7.8022]
[1718386915375,7.8005,142.3,142.26,26.0081]
[1718386915608,15.601,142.3,142.26,23.4074]
[1718386915802,15.5988,142.32,142.28,7.8012]
[1718386916003,7.8,142.31,142.27,5.2011]
[1718386916305,2.5999,142.32,142.29,2.6002]
[1718386916473,15.5988,142.32,142.28,20.8031]
[1718386916679,2.5999,142.31,142.28,7.8011]
[1718386916869,2.5999,142.31,142.27,18.2041]
[1718386917068,23.4015,142.3,142.26,7.8024]
[1718386917287,2.6005,142.28,142.25,2.6009]
[1718386917475,7.8022,142.27,142.23,13.0067]
[1718386917693,7.802,142.27,142.23,23.4118]
[1718386917891,7.802,142.27,142.24,2.6012]
[1718386918088,2.6009,142.26,142.23,7.8039]
[1718386918293,6.3094,142.3,142.2,45.4300128]
[1718386918495,6.3094,142.3,142.2,0.8514778]
[1718386918496,0.17,142.26,142.2,0.8514778]
[1718386918807,2.6017,142.22,142.2,0.8514778]
[1718386918985,2.6015,142.23,142.2,3.4533778]
[1718386919315,13.981,142.21,142.2,0.8514778]
[1718386919504,32.1933,142.21,142.2,0.8514778]
[1718386919979,26.0176,142.21,142.2,0.8514778]
[1718386920383,7.8052,142.21,142.2,0.8514778]
[1718386920611,15.8315,142.22,142.2,0.8514778]
[1718386920819,2.6014,142.23,142.2,3.4532778]
[1718386920979,0.17,142.26,142.2,0.8514778]
[1718386920980,2.6017,142.22,142.2,0.8514778]
[1718386921178,5.2035,142.21,142.2,0.8514778]
[1718386921383,7.8052,142.21,142.2,0.8514778]
[1718386921705,26.0176,142.21,142.2,0.8514778]
[1718386922022,7.8052,142.21,142.2,0.8514778]
[1718386922311,10.4068,142.22,142.2,0.8514778]
[1718386922514,18.2106,142.23,142.2,0.8514778]
[1718386922807,2.6017,142.21,142.2,0.8514778]
[1718386922997,23.17280903,142.27,142.2,0.8514778]
[1718386923205,23.17280903,142.27,142.22,7.8044]
[1718386923206,23.4082,142.26,142.22,7.8044]
[1718386923432,26.0092,142.26,142.22,13.0077]
[1718386923726,26.0092,142.26,142.21,7.805]
[1718386923727,7.29330903,142.27,142.2,0.8514778]
[1718386923889,2.6005,142.28,142.25,15.6058]
[1718386924088,7.8015,142.28,142.25,2.6008]
[1718386924300,2.6006,142.28,142.21,0.17]
[1718386924493,18.2029,142.29,142.24,18.2079]
[1718386924688,7.29616601,142.31,142.3,7.8003]
[1718386924930,5.1985,142.35,142.26,6.6535]
[1718386925224,7.7983,142.34,142.3,23.4005]
[1718386925389,7.7983,142.34,142.31,2.5998]
[1718386925807,7.7982,142.34,142.31,2.5998]
[1718386926004,2.5994,142.34,142.31,7.7996]
[1718386926219,7.7982,142.34,142.31,2.5998]
[1718386926381,2.599,142.37,142.34,2.5992]
[1718386926592,2.599,142.36,142.33,25.9946]
[1718386926807,12.9942,142.37,142.34,2.5993]
[1718386926808,15.5931,142.37,142.34,2.5993]
[1718386927019,7.7966,142.37,142.34,2.5993]
[1718386927218,2.5992,142.35,142.32,25.9968]
[1718386927523,2.599,142.36,142.33,7.7984]
[1718386928231,2.599,142.36,142.33,15.5971]
[1718386928400,2.599,142.36,142.33,7.7984]
[1718386928714,7.7971,142.36,142.33,2.5994]
[1718386929020,2.5992,142.35,142.33,2.5995]
[1718386929227,2.5992,142.35,142.32,25.9965]
[1718386929414,25.9905,142.36,142.33,2.5995]
[1718386929733,7.7958,142.39,142.34,5.1988]
[1718386930026,2.5989,142.37,142.34,2.5993]
[1718386930201,5.1981,142.36,142.33,2.5994]
[1718386930399,2.5994,142.34,142.31,2.5998]
[1718386930600,7.7983,142.34,142.31,2.5998]
[1718386930826,2.5994,142.34,142.31,7.7995]
[1718386931030,2.5994,142.34,142.32,2.5997]
[1718386931232,100.17,142.4,142.26,6.6535]
[1718386931528,7.7999,142.31,142.28,7.8013]
[1718386931822,7.7999,142.31,142.28,2.6004]
[1718386932119,7.7999,142.31,142.28,7.8013]
[1718386932527,23.3996,142.31,142.28,2.6004]
[1718386932727,200.17,142.38,142.27,2.6006]
[1718386932902,2.6002,142.3,142.26,10.4032]
[1718386933103,2.6002,142.3,142.22,6.5031]
[1718386933104,2.6002,142.3,142.28,2.6004]
[1718386933307,7.8006,142.3,142.27,2.6005]
[1718386933503,15.9555,142.36,142.22,21.5962]
[1718386933814,7.8027,142.26,142.23,7.8039]
[1718386934029,7.8031,142.25,142.22,2.6014]
[1718386934203,15.6066,142.25,142.22,7.8046]
[1718386934401,15.6066,142.25,142.22,2.6015]
[1718386934704,2.601,142.25,142.23,2.6014]
[1718386934906,2.6009,142.26,142.24,2.6012]
[1718386935223,2.5999,142.31,142.28,2.6003]
[1718386935430,10.4013,142.29,142.23,0.17]
[1718386935645,0.17,142.33,142.2,0.8514778]
[1718386935800,7.8027,142.26,142.23,2.6013]
[1718386936005,2.601,142.25,142.23,2.6013]
[1718386936511,26.009,142.26,142.23,7.8041]
[1718386936732,2.601,142.25,142.23,2.6013]
[1718386936935,2.6009,142.26,142.24,2.6012]
[1718386937136,2.6009,142.26,142.23,26.0137]
[1718386937519,26.0075,142.27,142.24,2.6012]
[1718386937719,2.6009,142.26,142.24,2.6012]
[1718386938235,2.6008,142.26,142.24,2.6012]
[1718386938442,2.6011,142.25,142.22,23.4136]
[1718386938734,7.8038,142.24,142.21,7.8049]
[1718386938924,23.4112,142.24,142.21,2.6016]
[1718386939124,23.4112,142.24,142.2,26.8698778]
[1718386939432,15.6087,142.23,142.2,8.6568778]
[1718386939738,15.6077,142.24,142.21,2.6016]
[1718386939918,2.6014,142.23,142.21,2.6016]
[1718386940120,2.6014,142.23,142.2,24.2682778]
[1718386940121,7.8042,142.23,142.2,16.4626778]
[1718386940337,15.6084,142.23,142.2,8.6568778]
[1718386940537,7.8042,142.23,142.2,16.4626778]
[1718386940717,2.6014,142.23,142.2,26.8704778]
[1718386940929,26.0129,142.24,142.21,2.6017]
[1718386941138,2.6014,142.23,142.21,2.6017]
[1718386941440,15.6096,142.22,142.2,0.8514778]
[1718386941621,2.6017,142.21,142.2,0.8514778]
[1718386941828,26.0161,142.22,142.2,0.8514778]
[1718386942658,2.6017,142.22,142.2,0.8514778]
[1718386943354,7.8049,142.22,142.2,0.8514778]
[1718386943847,16.215,142.29,142.2,0.8514778]
[1718386943848,26.0176,142.21,142.2,0.8514778]
[1718386944050,2.6017,142.21,142.2,0.8514778]
[1718386944251,26.0171,142.22,142.2,0.8514778]
[1718386944423,6.0585,142.25,142.2,0.8514778]
[1718386944424,26.0176,142.21,142.2,0.8514778]
[1718386945350,2.6017,142.21,142.2,0.8514778]
[1718386945534,7.805,142.22,142.2,0.8514778]
[1718386945734,2.6017,142.21,142.2,0.8514778]
[1718386946536,7.8051,142.22,142.2,0.8514778]
[1718386946842,18.2114,142.22,142.2,0.8514778]
[1718386947049,2.6017,142.21,142.2,0.8514778]
[1718386947237,26.0176,142.21,142.2,0.8514778]
[1718386954069,26.1876,142.21,142.2,0.8514778]
[1718386954568,26.0176,142.21,142.2,0.8514778]
[1718386955565,26.6976,142.21,142.2,0.8514778]
[1718386956381,71.6976,142.21,142.2,7.78e-05]
[1718386957290,7.8098,142.13,142.09,5.2077]
[1718386957586,7.8098,142.13,142.08,15.575]
[1718386957587,0.34,142.2,142.1,23.4338]
[1718386957903,2.6033,142.13,142.1,20.8299]
[1718386958207,7.8097,142.13,142.1,7.811]
[1718386958492,23.4292,142.13,142.09,23.4349]
[1718386958806,7.8098,142.13,142.1,7.8112]
[1718386958973,2.6034,142.12,142.1,2.6037]
[1718386959301,2.6034,142.12,142.09,23.4348]
[1718386959486,2.6036,142.11,142.08,31.1995]
[1718386959792,6.4295,142.18,142.06,8.986]
[1718386959793,2.604,142.09,142.06,8.986]
[1718386960097,7.812,142.09,142.06,8.986]
[1718386960264,0.17,142.14,142.06,8.9861]
[1718386960470,0.17,142.14,142.07,7.8129]
[1718386960471,5.2074,142.11,142.07,7.8129]
[1718386960669,2.6038,142.1,142.07,10.4173]
[1718386960865,2.6038,142.1,142.07,7.8128]
[1718386961280,26.0383,142.1,142.07,2.6043]
[1718386961466,2.6037,142.11,142.08,7.8124]
[1718386961666,15.6219,142.11,142.08,2.6041]
[1718386961866,26.0364,142.11,142.08,2.6041]
[1718386962489,23.4329,142.11,142.07,23.4386]
[1718386962692,7.811,142.11,142.08,7.8122]
[1718386962898,2.6037,142.11,142.09,2.6039]
[1718386963284,15.6178,142.15,142.07,0.17]
[1718386963486,6.2595,142.18,142.1,18.2261]
[1718386963689,2.6031,142.14,142.11,2.6035]
[1718386963890,15.6188,142.14,142.11,2.6035]
[1718386964092,6.2595,142.18,142.12,5.2068]
[1718386964299,6.2595,142.18,142.12,2.6033]
[1718386964300,2.603,142.14,142.12,2.6033]
[1718386964495,10.4106,142.17,142.08,0.17]
[1718386964704,13.0132,142.17,142.14,2.603]
[1718386964913,10.4089,142.19,142.15,2.6027]
[1718386965214,7.27786978,142.2,142.14,10.4115]
[1718386965215,2.6025,142.17,142.14,26.0296]
[1718386965516,7.8082,142.16,142.13,2.6031]
[1718386965716,2.6029,142.15,142.12,26.0331]
[1718386966205,2.603,142.14,142.11,7.8105]
[1718386966406,26.0298,142.15,142.12,2.6034]
[1718386966583,7.27786978,142.2,142.12,18.2233]
[1718386966584,2.6027,142.16,142.12,18.2233]
[1718386966783,2.6027,142.16,142.13,15.6191]
[1718386966984,2.6027,142.16,142.13,23.4289]
[1718386967283,2.6027,142.16,142.14,2.603]
[1718386967483,7.8071,142.18,142.15,2.6028]
[1718386967679,7.8071,142.18,142.14,23.4269]
[1718386967680,2.6025,142.17,142.14,23.4269]
[1718386967890,2.6027,142.16,142.13,26.0313]
[1718386968089,2.6027,142.16,142.14,2.603]
[1718386968310,7.8081,142.16,142.13,7.8092]
[1718386968484,7.27786978,142.2,142.1,0.17]
[1718386968691,26.0219,142.19,142.16,2.6026]
[1718386968893,26.0219,142.19,142.12,0.17]
[1718386968894,18.2158,142.19,142.12,0.34]
[1718386969099,2.6023,142.18,142.15,15.6171]
[1718386969390,2.6023,142.18,142.16,2.6026]
[1718386969600,26.0226,142.19,142.16,2.6026]
[1718386969799,23.4203,142.19,142.16,2.6026]
[1718386970112,2.6023,142.18,142.16,2.6026]
[1718386970415,23.4203,142.19,142.16,2.6026]
[1718386970603,2.6023,142.18,142.16,2.6026]
[1718386971426,7.8067,142.19,142.16,15.6158]
[1718386971606,18.2144,142.2,142.17,2.6024]
[1718386971809,18.2144,142.2,142.17,7.8073]
[1718386971810,7.8062,142.2,142.17,7.8073]
[1718386972020,7.8062,142.2,142.17,15.6148]
[1718386972199,7.8065,142.19,142.16,26.026]
[1718386972402,23.4195,142.19,142.16,2.6025]
[1718386972622,2.6025,142.17,142.14,5.2059]
[1718386972842,2.6027,142.16,142.14,2.6029]
[1718386973005,26.0252,142.17,142.14,7.809]
[1718386973205,7.8077,142.17,142.14,7.809]
[1718386973430,2.6026,142.17,142.15,2.6028]
[1718386973748,2.6025,142.17,142.15,2.6028]
[1718386974241,26.0244,142.18,142.15,7.8085]
[1718386974446,2.6024,142.18,142.16,2.6026]
[1718386974616,7.8061,142.2,142.17,2.6024]
[1718386974809,2.6016,142.22,142.19,23.4187]
[1718386975144,2.6016,142.22,142.14,0.17]
[1718386975145,18.2099,142.23,142.2,5.2039]
[1718386975306,2.6018,142.21,142.19,2.6021]
[1718386975631,2.602,142.2,142.18,2.6022]
[1718386976012,21.6913,142.26,142.18,2.6022]
[1718386976013,26.0168,142.22,142.19,7.8062]
[1718386976223,2.6018,142.21,142.19,2.602]
[1718386976728,7.8058,142.2,142.17,18.2171]
[1718386977108,2.6019,142.2,142.18,2.6023]
[1718386977303,2.6023,142.18,142.16,15.3573]
[1718386977622,2.6024,142.18,142.16,2.6026]
[1718386977826,2.6024,142.18,142.15,26.0283]
[1718386978032,0.17,142.23,142.13,9.2325]
[1718386978324,0.17,142.23,142.14,2.603]
[1718386978325,26.026,142.17,142.14,2.603]
[1718386978528,26.0239,142.18,142.14,23.4271]
[1718386978732,26.0239,142.18,142.15,2.6028]
[1718386978933,2.6025,142.17,142.14,26.03]
[1718386979127,2.6025,142.17,142.14,7.809]
[1718386979315,26.0236,142.18,142.14,15.6181]
[1718386979624,2.6025,142.17,142.14,7.8091]
[1718386979932,2.6025,142.17,142.14,15.6183]
[1718386980234,45.68,142.23,142.12,15.2786]
[1718386980435,23.4268,142.15,142.12,15.2786]
[1718386980744,2.6029,142.15,142.12,30.8989]
[1718386981033,5.2054,142.16,142.13,2.603]
[1718386981219,7.8081,142.16,142.13,2.6032]
[1718386981424,2.6027,142.16,142.13,23.4289]
[1718386981609,7.8075,142.17,142.14,2.6029]
[1718386982345,15.615,142.17,142.14,2.6029]
[1718386982642,0.17,142.21,142.12,15.2786]
[1718386982821,7.8088,142.15,142.12,17.8819]
[1718386983025,20.8226,142.16,142.13,2.6032]
[1718386983354,7.8084,142.16,142.13,2.6032]
[1718386983645,7.8078,142.17,142.13,23.4285]
[1718386983956,2.6024,142.18,142.15,2.6028]
[1718386984246,15.615,142.17,142.14,2.603]
[1718386984419,5.205,142.17,142.13,23.4283]
[1718386984617,26.0243,142.18,142.15,2.6028]
[1718386984818,7.807,142.18,142.15,7.8085]
[1718386985038,26.0222,142.19,142.16,2.6026]
[1718386985244,15.6132,142.19,142.16,2.6026]
[1718386985431,7.8067,142.19,142.16,2.6026]
[1718386985631,7.807,142.18,142.15,2.6027]
[1718386986052,2.6025,142.17,142.14,26.0294]
[1718386987146,26.0235,142.18,142.15,2.6028]
[1718386987352,26.0225,142.19,142.16,2.6026]
[1718386987659,2.6023,142.18,142.15,26.0281]
[1718386988244,23.4202,142.19,142.16,2.6026]
[1718386988456,26.0225,142.19,142.15,26.0281]
[1718386988654,2.6023,142.18,142.15,7.8082]
[1718386989128,23.4201,142.19,142.15,5.2055]
[1718386989342,7.28200273,142.22,142.12,15.2786]
[1718386989548,7.8064,142.19,142.16,7.8079]
[1718386990052,0.33333333,142.18,142.17,26.0249]
[1718386990656,0.33333333,142.18,142.16,6.0914]
[1718386990832,0.33333333,142.18,142.16,8.694]
[1718386991032,0.33333333,142.18,142.16,6.0914]
[1718386991239,0.33333333,142.18,142.16,8.694]
[1718386991561,7.8094,142.14,142.12,21.37]
[1718386991727,6.2286,142.19,142.09,16.1625]
[1718386991935,146.01333333,142.18,142.09,16.1625]
[1718386992158,13.0184,142.11,142.08,2.604]
[1718386992455,26.0366,142.11,142.08,2.6041]
[1718386992651,0.33333333,142.1,142.06,25.8585]
[1718386992854,7.8119,142.09,142.06,23.254]
[1718386993074,2.6041,142.08,142.05,3.4560778]
[1718386993243,2.6042,142.08,142.05,8.6652778]
[1718386993445,7.8125,142.08,142.05,3.4560778]
[1718386993636,2.6042,142.08,142.05,8.6654778]
[1718386993859,2.6042,142.08,142.05,16.4795778]
[1718386994164,7.8123,142.09,142.06,2.6044]
[1718386994462,7.8125,142.08,142.05,3.4560778]
[1718386994664,2.6044,142.07,142.05,0.8514778]
[1718386995267,2.6043,142.07,142.05,3.4560778]
[1718386995434,2.6043,142.07,142.05,0.8514778]
[1718386995642,23.438,142.08,142.05,0.8514778]
[1718386995865,26.0423,142.08,142.05,3.4561778]
[1718386996158,15.6253,142.08,142.05,3.4561778]
[1718386996352,2.6043,142.07,142.05,0.8514778]
[1718386996556,2.6041,142.08,142.05,8.6652778]
[1718386996858,2.6041,142.08,142.05,16.4792778]
[1718386997034,2.6041,142.08,142.05,0.8514778]
[1718386997035,2.6043,142.07,142.05,0.8514778]
[1718386997235,15.625,142.08,142.05,3.4560778]
[1718386997430,7.8125,142.08,142.05,8.6654778]
[1718386997654,26.0451,142.06,142.05,0.8514778]
[1718386997856,2.6051,142.03,141.99,18.2399]
[1718386998136,0.17,142.06,141.98,38.4962]
[1718386998353,7.8159,142.02,141.99,7.8173]
[1718386998567,2.6058,141.99,141.98,15.0431]
[1718386998743,2.6055,142.01,141.98,17.649]
[1718386998943,2.6054,142.02,141.99,7.8174]
[1718386999165,23.4465,142.03,141.97,6.4703]
[1718386999166,2.6057,142.0,141.97,2.6061]
[1718386999337,2.6057,142.0,141.92,46.198]
[1718386999338,7.8172,142.0,141.96,5.2125]
[1718386999539,26.0558,142.01,141.98,2.6059]
[1718386999875,23.4499,142.01,141.97,13.0308]
[1718387000033,2.6056,142.0,141.97,26.0614]
[1718387000233,2.6056,142.0,141.97,15.6368]
[1718387000461,2.606,141.98,141.95,5.2129]
[1718387000659,2.6058,141.99,141.96,15.638]
[1718387000958,26.0555,142.01,141.98,2.6059]
[1718387001158,10.4228,142.0,141.95,23.4583]
[1718387001465,0.17,142.02,141.92,16.258]
[1718387001635,0.17,142.02,141.95,2.6065]
[1718387001636,7.8181,141.98,141.95,2.6065]
[1718387001841,2.6061,141.98,141.95,7.8196]
[1718387002143,26.0583,141.99,141.96,2.6063]
[1718387002343,7.8177,141.99,141.96,2.6063]
[1718387002541,2.6059,141.99,141.96,15.638]
[1718387002747,7.8175,141.99,141.96,7.819]
[1718387002943,7.8182,141.98,141.95,2.6064]
[1718387003266,7.2896808,142.04,141.92,16.258]
[1718387003447,5.2094,142.05,141.93,29.94]
[1718387003757,2.6053,142.02,141.99,26.0571]
[1718387003955,2.6055,142.01,141.98,7.8175]
[1718387004171,15.6328,142.01,141.98,2.6058]
[1718387004339,7.8164,142.01,141.98,2.6059]
[1718387004535,23.1335329,142.07,141.99,5.2116]
[1718387004845,26.0529,142.02,141.99,2.6057]
[1718387005044,2.6054,142.02,141.99,15.6347]
[1718387005239,7.8152,142.03,142.0,7.8165]
[1718387005554,2.6051,142.03,142.0,7.8165]
[1718387006147,2.6051,142.03,142.0,15.6333]
[1718387006466,2.605,142.04,142.01,7.8162]
[1718387006655,2.6043,142.08,142.0,0.34]
[1718387006976,2.6043,142.07,142.04,7.8142]
[1718387007166,7.813,142.07,142.04,2.6047]
[1718387007473,7.813,142.07,142.04,7.8144]
[1718387007669,15.6261,142.07,142.04,2.6047]
[1718387007851,7.8136,142.06,142.03,2.6049]
[1718387008170,7.8141,142.05,142.02,2.6051]
[1718387008361,5.2082,142.09,142.02,18.2362]
[1718387008572,18.2319,142.06,142.01,23.4481]
[1718387008863,18.2319,142.06,142.0,0.17]
[1718387008864,26.0457,142.06,142.03,2.605]
[1718387009065,2.6047,142.05,142.02,26.0519]
[1718387009274,23.4411,142.06,142.02,7.8154]
[1718387009452,2.6047,142.05,142.02,15.6311]
[1718387009646,2.6047,142.05,141.99,46.5668]
[1718387009647,10.4206,142.03,141.99,16.6268]
[1718387009848,2.6056,142.0,141.96,15.6123]
[1718387010162,5.211,142.01,141.98,2.6059]
[1718387010346,2.6054,142.01,141.98,23.4537]
[1718387010545,26.0535,142.02,141.99,2.6058]
[1718387010744,5.2099,142.04,142.01,2.6053]
[1718387010987,2.6049,142.04,142.01,7.8161]
[1718387011287,7.8147,142.04,142.01,2.6053]
[1718387011650,100.0,142.08,141.96,15.6123]
[1718387011847,2.6054,142.02,141.99,15.6346]
[1718387012089,7.8154,142.03,141.99,23.452]
[1718387012252,2.6055,142.01,141.98,5.2119]
[1718387012574,2.6055,142.01,141.98,15.6357]
[1718387012752,2.6055,142.01,141.98,7.8177]
[1718387012956,5.2095,142.05,142.02,2.6052]
[1718387013169,2.6048,142.05,142.02,7.8157]
[1718387013352,7.8142,142.05,142.02,7.8156]
[1718387013676,7.8139,142.06,142.03,7.8151]
[1718387013854,2.6043,142.07,142.05,2.6046]
[1718387014054,2.6043,142.07,142.04,23.4435]
[1718387014055,15.626,142.07,142.04,2.6048]
[1718387014250,15.626,142.07,142.01,6.6629]
[1718387014251,5.2095,142.05,142.01,24.9002]
[1718387014578,7.8138,142.06,142.03,15.6302]
[1718387014773,7.8138,142.06,142.03,7.815]
[1718387015075,7.8138,142.06,142.03,2.6049]
[1718387015076,26.0455,142.06,142.03,2.6049]
[1718387015276,2.6047,142.05,142.02,26.0513]
[1718387015480,7.8141,142.05,142.02,7.8154]
[1718387016150,7.8147,142.04,142.01,7.816]
[1718387016446,7.8147,142.04,142.01,15.6323]
[1718387016650,26.0476,142.05,142.02,2.6052]
[1718387016878,26.0476,142.05,142.02,7.8156]
[1718387016879,7.8144,142.05,142.02,7.8156]
[1718387017069,15.6285,142.05,142.02,7.8156]
[1718387017273,2.6049,142.04,142.02,2.6052]
[1718387017581,23.4446,142.04,142.01,2.6053]
[1718387017778,2.6054,142.02,141.99,7.817]
[1718387018089,18.2365,142.03,141.99,13.0289]
[1718387018265,5.2095,142.05,142.02,2.6052]
[1718387018585,26.0493,142.04,142.01,2.6053]
[1718387018760,7.8149,142.04,142.01,7.8161]
[1718387018961,7.8149,142.04,142.01,15.6323]
[1718387019383,7.28132167,142.09,141.98,6.2879]
[1718387019560,2.6051,142.03,142.0,7.8165]
[1718387019874,15.6305,142.03,142.0,7.8165]
[1718387020074,15.6305,142.03,142.0,2.6055]
[1718387020382,0.17,142.07,142.0,7.8166]
[1718387020580,7.8149,142.04,142.01,7.8162]
[1718387020885,18.2334,142.05,142.03,2.605]
[1718387020886,2.6047,142.05,142.03,2.605]
[1718387021053,2.6047,142.05,142.02,26.0521]
[1718387021256,15.6283,142.05,142.02,7.8155]
[1718387021482,7.8142,142.05,142.02,15.6312]
[1718387021657,2.6046,142.06,142.03,15.6302]
[1718387021858,7.8136,142.06,142.03,15.6302]
[1718387022290,2.6043,142.07,142.04,15.6288]
[1718387022461,2.6046,142.06,142.03,7.8149]
[1718387022656,10.4181,142.07,141.98,0.17]
[1718387022878,7.8132,142.07,142.04,2.6048]
[1718387023186,7.8132,142.07,142.04,15.629]
[1718387023486,26.0438,142.07,142.04,2.6048]
[1718387023662,26.0437,142.07,142.04,2.6048]
[1718387023858,15.6273,142.06,142.03,7.8148]
[1718387024062,2.6051,142.03,142.0,23.4501]
[1718387024263,23.4441,142.04,142.01,2.6053]
[1718387024493,23.4441,142.04,142.0,26.0554]
[1718387024494,2.6051,142.03,142.0,26.0554]
[1718387024677,7.8149,142.04,142.01,15.6324]
[1718387024984,26.0492,142.04,142.01,2.6053]
[1718387025279,100.0,142.09,141.99,5.2115]
[1718387025464,23.4459,142.03,142.0,2.6056]
[1718387025659,7.8149,142.04,142.01,7.8162]
[1718387025880,15.6296,142.04,142.01,7.8162]
[1718387026073,2.6051,142.03,142.0,7.8165]
[1718387026259,26.0507,142.03,142.0,2.6055]
[1718387026460,2.6053,142.02,141.99,15.6343]
[1718387026657,23.4456,142.03,141.99,18.2406]
[1718387026855,45.68,142.08,141.99,13.0287]
[1718387027074,0.17,142.05,141.99,7.8171]